lending/lending_fUSD_20240710
["ID","MTS","AMOUNT","RATE_DAILY","PERIOD"]
[331600030,1720578669272,-500.0,0.00013884,2]
[331600031,1720578669282,-2293.08,0.00013884,2]
[331600032,1720578669291,-500.0,0.00013884,2]
[331600033,1720578669301,-879.8,0.00013884,2]
[331600034,1720578669311,-5568.96,0.00013884,2]
[331600035,1720578669321,-500.0,0.00013884,2]
[331600036,1720578669330,-500.0,0.00013884,2]
[331600037,1720578669339,-2089.34,0.00013884,2]
[331600038,1720578669349,-3794.84,0.00013884,2]
[331600039,1720578669358,-500.0,0.00013884,2]
[331600040,1720578669367,-500.0,0.00013884,2]
[331600041,1720578669377,-1116.11,0.00013884,2]
[331600042,1720578669386,-1057.08,0.00013884,2]
[331600043,1720578669396,-500.0,0.00013884,2]
[331600044,1720578669405,-3723.23,0.00013884,2]
[331600045,1720578669415,-500.0,0.00013884,2]
[331600046,1720578669424,-500.0,0.00013884,2]
[331600047,1720578669433,-4028.33,0.00013884,2]
[331600048,1720578669443,-500.0,0.00013884,2]
[331600049,1720578669452,-1071.85,0.00013884,2]
[331600050,1720578669462,-621.06415573,0.00013884,2]
[331600051,1720578669471,-1308.49,0.00013884,2]
[331600052,1720578669480,-500.0,0.00013884,2]
[331600053,1720578669490,-607.01,0.00013884,2]
[331600054,1720578669499,-796.74,0.00013884,2]
[331600055,1720578669509,-2550.62,0.00013884,2]
[331600056,1720578669518,-500.0,0.00013884,2]
[331600057,1720578669528,-3309.42,0.00013884,2]
[331600058,1720578669538,-851.82,0.00013884,2]
[331600059,1720578669549,-450.18777403,0.00013884,2]
[331600060,1720578669559,-751.82,0.00013884,2]
[331600061,1720578669569,-1952.3,0.00013884,2]
[331600062,1720578669580,-2070.44,0.00013884,2]
[331600063,1720578669589,-500.0,0.00013884,2]
[331600064,1720578669599,-1170.3,0.00013884,2]
[331600065,1720578669608,-151.0,0.00013884,2]
[331600066,1720578669618,-151.0,0.00013884,2]
[331600067,1720578669627,-151.0,0.00013884,2]
[331600068,1720578669636,-639.17,0.00013884,2]
[331600069,1720578669646,-151.0,0.00013884,2]
[331600070,1720578669655,-151.0,0.00013884,2]
[331600071,1720578669666,-152.002504,0.00013884,2]
[331600072,1720578669675,-500.0,0.00013884,2]
[331600073,1720578669684,-2105.71,0.00013884,2]
[331600074,1720578669840,-500.0,0.00013884,2]
[331600075,1720578669851,-569.42643069,0.00013884,2]
[331600076,1720578669861,-623.84,0.00013884,2]
[331600077,1720578669871,-2886.6,0.00013884,2]
[331600078,1720578669880,-539.23,0.00013884,2]
[331600079,1720578669890,-1872.17,0.00013884,2]
[331600080,1720578669900,-868.45,0.00013884,2]
[331600081,1720578669909,-1219.17,0.00013884,2]
[331600082,1720578669919,-655.24,0.00013884,2]
[331600083,1720578669928,-500.0,0.00013884,2]
[331600084,1720578669937,-500.0,0.00013884,2]
[331600085,1720578669948,-777.75,0.00013884,2]
[331600086,1720578669957,-500.0,0.00013884,2]
[331600087,1720578669967,-599.32,0.00013884,2]
[331600088,1720578669976,-2329.47,0.00013884,2]
[331600089,1720578669985,-3968.07,0.00013884,2]
[331600090,1720578669994,-500.0,0.00013884,2]
[331600091,1720578670004,-663.26,0.00013884,2]
[331600092,1720578670014,-1875.4,0.00013884,2]
[331600093,1720578670031,-4077.31,0.00013884,2]
[331600094,1720578670043,-3530.8,0.00013884,2]
[331600095,1720578670053,-1218.44,0.00013884,2]
[331600096,1720578670062,-1457.6,0.00013884,2]
[331600097,1720578670072,-500.0,0.00013884,2]
[331600098,1720578670081,-2781.87,0.00013884,2]
[331600099,1720578670091,-500.0,0.00013884,2]
[331600100,1720578670099,-500.0,0.00013884,2]
[331600101,1720578670109,-500.0,0.00013884,2]
[331600102,1720578670119,-3490.15,0.00013884,2]
[331600103,1720578670129,-852.1,0.00013884,2]
[331600104,1720578670138,-500.0,0.00013884,2]
[331600105,1720578670147,-3483.06,0.00013884,2]
[331600106,1720578670156,-500.0,0.00013884,2]
[331600107,1720578670165,-602.02,0.00013884,2]
[331600108,1720578670175,-500.0,0.00013884,2]
[331600109,1720578670184,-500.0,0.00013884,2]
[331600110,1720578670194,-954.89,0.00013884,2]
[331600111,1720578670203,-500.0,0.00013884,2]
[331600112,1720578670212,-1557.06,0.00013884,2]
[331600113,1720578670221,-3889.37,0.00013884,2]
[331600114,1720578670231,-577.12,0.00013884,2]
[331600115,1720578670241,-1421.19,0.00013884,2]
[331600116,1720578670251,-1018.29,0.00013884,2]
[331600117,1720578670261,-2534.53,0.00013884,2]
[331600118,1720578670271,-500.0,0.00013884,2]
[331600119,1720578670280,-2027.01,0.00013884,2]
[331600120,1720578670289,-1232.23,0.00013884,2]
[331600121,1720578670298,-796.28,0.00013884,2]
[331600122,1720578670308,-3249.13,0.00013884,2]
[331600123,1720578670317,-3416.97,0.00013884,2]
[331600124,1720578670326,-912.7,0.00013884,2]
[331600125,1720578670336,-628.03,0.00013884,2]
[331600126,1720578670345,-2259.25,0.00013884,2]
[331600127,1720578670355,-500.0,0.00013884,2]
[331600128,1720578670364,-4612.26,0.00013884,2]
[331600129,1720578670374,-1929.12,0.00013884,2]
[331600130,1720578670383,-500.0,0.00013884,2]
[331600131,1720578670392,-500.0,0.00013884,2]
[331600132,1720578670401,-500.0,0.00013884,2]
[331600133,1720578670410,-1229.65,0.00013884,2]
[331600134,1720578670419,-500.0,0.00013884,2]
[331600135,1720578670429,-500.32273899,0.00013884,2]
[331600136,1720578670439,-1289.3,0.00013884,2]
[331600137,1720578670448,-1330.94,0.00013884,2]
[331600138,1720578670458,-500.0,0.00013884,2]
[331600139,1720578670467,-1469.74,0.00013884,2]
[331600140,1720578670477,-1958.4,0.00013884,2]
[331600141,1720578670487,-4719.0,0.00013884,2]
[331600142,1720578670496,-500.0,0.00013884,2]
[331600143,1720578670506,-4118.25,0.00013884,2]
[331600144,1720578670515,-1019.09,0.00013884,2]
[331600145,1720578670525,-500.0,0.00013884,2]
[331600146,1720578670535,-500.0,0.00013884,2]
[331600147,1720578670544,-514.08985928,0.00013884,2]
[331600148,1720578670554,-2524.16,0.00013884,2]
[331600149,1720578670563,-500.0,0.00013884,2]
[331600150,1720578670572,-500.0,0.00013884,2]
[331600151,1720578670582,-1541.81,0.00013884,2]
[331600152,1720578670591,-1668.28,0.00013884,2]
[331600153,1720578670601,-500.0,0.00013884,2]
[331600154,1720578670610,-885.52,0.00013884,2]
[331600155,1720578670619,-673.97,0.00013884,2]
[331600156,1720578670629,-1226.77,0.00013884,2]
[331600157,1720578670639,-2920.14,0.00013884,2]
[331600158,1720578670649,-500.0,0.00013884,2]
[331600159,1720578670658,-1056.97,0.00013884,2]
[331600160,1720578670667,-857.73,0.00013884,2]
[331600161,1720578670677,-1638.84,0.00013884,2]
[331600162,1720578670686,-1457.4,0.00013884,2]
[331600163,1720578670695,-500.0,0.00013884,2]
[331600164,1720578670705,-500.0,0.00013884,2]
[331600165,1720578670714,-720.29,0.00013884,2]
[331600166,1720578670723,-1346.39,0.00013884,2]
[331600167,1720578670733,-1127.85,0.00013884,2]
[331600168,1720578670742,-1706.17,0.00013884,2]
[331600169,1720578670751,-1239.0,0.00013884,2]
[331600170,1720578670763,-500.0,0.00013884,2]
[331600171,1720578670772,-3650.73,0.00013884,2]
[331600172,1720578670782,-520.91,0.00013884,2]
[331600173,1720578670793,-500.0,0.00013884,2]
[331600174,1720578670802,-500.0,0.00013884,2]
[331600175,1720578670812,-1741.78,0.00013884,2]
[331600176,1720578670821,-927.35,0.00013884,2]
[331600177,1720578670832,-500.0,0.00013884,2]
[331600178,1720578670842,-500.0,0.00013884,2]
[331600179,1720578670852,-922.38,0.00013884,2]
[331600180,1720578670863,-500.0,0.00013884,2]
[331600181,1720578670872,-2313.53,0.00013884,2]
[331600182,1720578670881,-500.0,0.00013884,2]
[331600183,1720578670890,-503.82,0.00013884,2]
[331600184,1720578670900,-3557.48,0.00013884,2]
[331600185,1720578670909,-500.0,0.00013884,2]
[331600186,1720578670919,-1970.43,0.00013884,2]
[331600187,1720578670928,-3525.51,0.00013884,2]
[331600188,1720578670937,-1109.56,0.00013884,2]
[331600189,1720578670948,-4650.87,0.00013884,2]
[331600190,1720578670958,-609.31,0.00013884,2]
[331600191,1720578670967,-500.0,0.00013884,2]
[331600192,1720578670976,-861.16,0.00013884,2]
[331600193,1720578670984,-506.91,0.00013884,2]
[331600194,1720578670994,-632.68,0.00013884,2]
[331600195,1720578671003,-500.0,0.00013884,2]
[331600196,1720578671013,-772.45,0.00013884,2]
[331600197,1720578671023,-500.0,0.00013884,2]
[331600198,1720578671032,-500.0,0.00013884,2]
[331600199,1720578671042,-1752.78,0.00013884,2]
[331600200,1720578671051,-500.0,0.00013884,2]
[331600201,1720578671062,-1346.76,0.00013884,2]
[331600202,1720578671071,-500.0,0.00013884,2]
[331600203,1720578671080,-1401.3,0.00013884,2]
[331600204,1720578671090,-706.06,0.00013884,2]
[331600205,1720578671099,-500.0,0.00013884,2]
[331600206,1720578671109,-500.0,0.00013884,2]
[331600207,1720578671119,-500.0,0.00013884,2]
[331600208,1720578671130,-500.0,0.00013884,2]
[331600209,1720578671139,-150.29345877,0.00013884,2]
[331600210,1720578671148,-500.0,0.00013884,2]
[331600211,1720578671158,-883.34,0.00013884,2]
[331600212,1720578671168,-500.0,0.00013884,2]
[331600213,1720578671177,-752.49,0.00013884,2]
[331600214,1720578671187,-500.0,0.00013885,2]
[331600215,1720578671196,-500.0,0.00013885,2]
[331600216,1720578671206,-500.0,0.00013885,2]
[331600217,1720578671215,-500.0,0.00013885,2]
[331600218,1720578671225,-500.0,0.00013885,2]
[331600219,1720578671235,-500.0,0.00013885,2]
[331600220,1720578671244,-500.0,0.00013885,2]
[331600221,1720578671253,-500.0,0.00013885,2]
[331600222,1720578671262,-500.0,0.00013885,2]
[331600223,1720578671272,-500.0,0.00013885,2]
[331600224,1720578671281,-500.0,0.00013885,2]
[331600225,1720578671291,-500.0,0.00013885,2]
[331600226,1720578671300,-500.0,0.00013885,2]
[331600227,1720578671310,-500.0,0.00013885,2]
[331600228,1720578671319,-500.0,0.00013885,2]
[331600229,1720578671328,-500.0,0.00013885,2]
[331600230,1720578671337,-500.0,0.00013885,2]
[331600231,1720578671347,-500.0,0.00013885,2]
[331600232,1720578671356,-500.0,0.00013885,2]
[331600233,1720578671365,-500.0,0.00013885,2]
[331600234,1720578671375,-500.0,0.00013885,2]
[331600235,1720578671383,-500.0,0.00013885,2]
[331600236,1720578671393,-500.0,0.00013885,2]
[331600237,1720578671402,-500.0,0.00013885,2]
[331600238,1720578671412,-500.0,0.00013885,2]
[331600239,1720578671421,-500.0,0.00013885,2]
[331600240,1720578671430,-500.0,0.00013885,2]
[331600241,1720578671439,-500.0,0.00013885,2]
[331600242,1720578671449,-500.0,0.00013885,2]
[331600243,1720578671458,-500.0,0.00013885,2]
[331600244,1720578671468,-500.0,0.00013885,2]
[331600245,1720578671477,-500.0,0.00013885,2]
[331600246,1720578671487,-500.0,0.00013885,2]
[331600247,1720578671497,-179.92411076,0.00013885,2]
[331600248,1720578671507,-500.0,0.00013885,2]
[331600249,1720578671517,-500.0,0.00013885,2]
[331600250,1720578671526,-500.0,0.00013885,2]
[331600251,1720578671536,-500.0,0.00013885,2]
[331600252,1720578671545,-500.0,0.00013885,2]
[331600253,1720578671555,-500.0,0.00013885,2]
[331600254,1720578671564,-500.0,0.00013885,2]
[331600255,1720578671574,-372.3839034,0.00013885,2]
[331600256,1720578671583,-500.0,0.00013885,2]
[331600257,1720578671593,-500.0,0.00013885,2]
[331600258,1720578671602,-500.0,0.00013885,2]
[331600259,1720578671612,-500.0,0.00013885,2]
[331600260,1720578671622,-500.0,0.00013885,2]
[331600261,1720578671631,-500.0,0.00013885,2]
[331600262,1720578671641,-500.0,0.00013885,2]
[331600263,1720578671650,-232.24731332,0.00013885,2]
[331600264,1720578671659,-500.0,0.00013885,2]
[331600265,1720578671671,-500.0,0.00013885,2]
[331600266,1720578671680,-817.04,0.00013885,2]
[331600267,1720578671689,-817.04,0.00013885,2]
[331600268,1720578671698,-500.0,0.00013885,2]
[331600269,1720578671707,-500.0,0.00013885,2]
[331600270,1720578671716,-500.0,0.00013885,2]
[331600271,1720578671725,-500.0,0.00013885,2]
[331600272,1720578671734,-500.0,0.00013885,2]
[331600273,1720578671743,-500.0,0.00013885,2]
[331600274,1720578671752,-500.0,0.00013885,2]
[331600275,1720578671762,-500.0,0.00013885,2]
[331600276,1720578671771,-500.0,0.00013885,2]
[331600277,1720578671780,-526.26586346,0.00013885,2]
[331600278,1720578671790,-524.75109748,0.00013885,2]
[331600279,1720578671799,-500.0,0.00013885,2]
[331600280,1720578671809,-500.0,0.00013885,2]
[331600281,1720578671818,-500.0,0.00013885,2]
[331600282,1720578671828,-500.0,0.00013885,2]
[331600283,1720578671839,-500.0,0.00013885,2]
[331600284,1720578671850,-500.0,0.00013885,2]
[331600285,1720578671860,-596.40342067,0.00013885,2]
[331600286,1720578671870,-500.0,0.00013885,2]
[331600287,1720578671880,-500.0,0.00013885,2]
[331600288,1720578671889,-500.0,0.00013885,2]
[331600289,1720578671899,-500.0,0.00013885,2]
[331600290,1720578671908,-500.0,0.00013885,2]
[331600291,1720578671917,-500.0,0.00013885,2]
[331600292,1720578671929,-500.0,0.00013885,2]
[331600293,1720578671938,-500.0,0.00013885,2]
[331600294,1720578671949,-500.0,0.00013885,2]
[331600295,1720578671959,-500.0,0.00013885,2]
[331600296,1720578671968,-500.0,0.00013885,2]
[331600297,1720578671978,-500.0,0.00013885,2]
[331600298,1720578671987,-500.0,0.00013885,2]
[331600299,1720578671997,-500.0,0.00013885,2]
[331600300,1720578672007,-500.0,0.00013885,2]
[331600301,1720578672016,-500.0,0.00013885,2]
[331600302,1720578672026,-500.0,0.00013885,2]
[331600303,1720578672035,-500.0,0.00013885,2]
[331600304,1720578672045,-500.0,0.00013885,2]
[331600305,1720578672054,-500.0,0.00013885,2]
[331600306,1720578672064,-500.0,0.00013885,2]
[331600307,1720578672074,-500.0,0.00013885,2]
[331600308,1720578672084,-500.0,0.00013885,2]
[331600309,1720578672093,-500.0,0.00013885,2]
[331600310,1720578672103,-500.0,0.00013885,2]
[331600311,1720578672112,-500.0,0.00013885,2]
[331600312,1720578672123,-500.0,0.00013885,2]
[331600313,1720578672133,-396.75441666,0.00013885,2]
[331600314,1720578672142,-500.0,0.00013885,2]
[331600315,1720578672151,-500.0,0.00013885,2]
[331600316,1720578672161,-500.0,0.00013885,2]
[331600317,1720578672170,-500.0,0.00013885,2]
[331600318,1720578672180,-500.0,0.00013885,2]
[331600319,1720578672190,-2290.0,0.00013885,2]
[331600320,1720578672199,-500.0,0.00013885,2]
[331600321,1720578672208,-500.0,0.00013885,2]
[331600322,1720578672218,-500.0,0.00013885,2]
[331600323,1720578672227,-500.0,0.00013885,2]
[331600324,1720578672237,-500.0,0.00013885,2]
[331600325,1720578672247,-500.0,0.00013885,2]
[331600326,1720578672256,-500.0,0.00013885,2]
[331600327,1720578672266,-500.0,0.00013885,2]
[331600328,1720578672275,-500.0,0.00013885,2]
[331600329,1720578672284,-500.0,0.00013885,2]
[331600330,1720578672294,-500.0,0.00013885,2]
[331600331,1720578672303,-500.0,0.00013885,2]
[331600332,1720578672313,-2057.34,0.00013885,2]
[331600333,1720578672322,-500.0,0.00013885,2]
[331600334,1720578672332,-500.0,0.00013885,2]
[331600335,1720578672340,-500.0,0.00013885,2]
[331600336,1720578672350,-1648.68,0.00013885,2]
[331600337,1720578672363,-500.0,0.00013885,2]
[331600338,1720578672373,-500.0,0.00013885,2]
[331600339,1720578672382,-500.0,0.00013885,2]
[331600340,1720578672391,-500.0,0.00013885,2]
[331600341,1720578672401,-500.0,0.00013885,2]
[331600342,1720578672412,-1038.91,0.00013885,2]
[331600343,1720578672422,-1038.91,0.00013885,2]
[331600344,1720578672432,-500.0,0.00013885,2]
[331600345,1720578672442,-500.0,0.00013885,2]
[331600346,1720578672452,-5214.09,0.00013885,2]
[331600347,1720578672461,-5214.09,0.00013885,2]
[331600348,1720578672470,-2721.34,0.00013885,2]
[331600349,1720578672480,-500.0,0.00013885,2]
[331600350,1720578672490,-500.0,0.00013885,2]
[331600351,1720578672502,-1375.79,0.00013885,2]
[331600352,1720578672512,-500.0,0.00013885,2]
[331600353,1720578672523,-500.0,0.00013885,2]
[331600354,1720578672534,-544.49,0.00013885,2]
[331600355,1720578672544,-500.0,0.00013885,2]
[331600356,1720578672554,-500.0,0.00013885,2]
[331600357,1720578672563,-397.7186663,0.00013885,2]
[331600358,1720578672572,-3248.9,0.00013885,2]
[331600359,1720578672582,-500.0,0.00013885,2]
[331600360,1720578672591,-500.0,0.00013885,2]
[331600361,1720578672600,-500.0,0.00013885,2]
[331600362,1720578672609,-500.0,0.00013885,2]
[331600363,1720578672618,-3341.97,0.00013885,2]
[331600364,1720578672628,-500.0,0.00013885,2]
[331600365,1720578672637,-2571.74,0.00013885,2]
[331600366,1720578672646,-500.0,0.00013885,2]
[331600367,1720578672655,-576.23,0.00013885,2]
[331600368,1720578672664,-500.0,0.00013885,2]
[331600369,1720578672673,-500.0,0.00013885,2]
[331600370,1720578672682,-500.0,0.00013885,2]
[331600371,1720578672692,-3031.33,0.00013885,2]
[331600372,1720578672702,-500.0,0.00013885,2]
[331600373,1720578672711,-599.89439772,0.00013885,2]
[331600374,1720578672720,-500.0,0.00013885,2]
[331600375,1720578672730,-545.72,0.00013885,2]
[331600376,1720578672740,-500.0,0.00013885,2]
[331600377,1720578672749,-458.7401918,0.00013885,2]
[331600378,1720578672758,-3107.63,0.00013885,2]
[331600379,1720578672767,-500.0,0.00013885,2]
[331600380,1720578672776,-500.0,0.00013885,2]
[331600381,1720578672785,-500.0,0.00013885,2]
[331600382,1720578672794,-606.78,0.00013885,2]
[331600383,1720578672803,-500.0,0.00013885,2]
[331600384,1720578672813,-500.0,0.00013885,2]
[331600385,1720578672822,-2546.33,0.00013885,2]
[331600386,1720578672831,-541.30168824,0.00013885,2]
[331600387,1720578672840,-500.0,0.00013885,2]
[331600388,1720578672850,-395.0623268,0.00013885,2]
[331600389,1720578672860,-500.0,0.00013885,2]
[331600390,1720578672869,-4733.97,0.00013885,2]
[331600391,1720578672879,-500.0,0.00013885,2]
[331600392,1720578672888,-538.29175957,0.00013885,2]
[331600393,1720578672898,-514.22115039,0.00013885,2]
[331600394,1720578672907,-500.0,0.00013885,2]
[331600395,1720578672916,-1317.14,0.00013885,2]
[331600396,1720578672927,-1317.14,0.00013885,2]
[331600397,1720578672937,-500.0,0.00013885,2]
[331600398,1720578672947,-500.0,0.00013885,2]
[331600399,1720578672956,-500.0,0.00013885,2]
[331600400,1720578672966,-5347.65,0.00013885,2]
[331600401,1720578672975,-500.0,0.00013885,2]
[331600402,1720578672985,-3712.9,0.00013885,2]
[331600403,1720578672995,-500.0,0.00013885,2]
[331600404,1720578673004,-500.0,0.00013885,2]
[331600405,1720578673015,-3617.99,0.00013885,2]
[331600406,1720578673024,-500.0,0.00013885,2]
[331600407,1720578673033,-500.0,0.00013885,2]
[331600408,1720578673042,-500.0,0.00013885,2]
[331600409,1720578673052,-1944.76,0.00013885,2]
[331600410,1720578673061,-500.0,0.00013885,2]
[331600411,1720578673070,-500.0,0.00013885,2]
[331600412,1720578673079,-500.0,0.00013885,2]
[331600413,1720578673089,-6292.93,0.00013885,2]
[331600414,1720578673098,-500.0,0.00013885,2]
[331600415,1720578673108,-500.0,0.00013885,2]
[331600416,1720578673119,-923.68,0.00013885,2]
[331600417,1720578673129,-500.0,0.00013885,2]
[331600418,1720578673139,-500.0,0.00013885,2]
[331600419,1720578673148,-500.0,0.00013885,2]
[331600420,1720578673158,-500.0,0.00013885,2]
[331600421,1720578673168,-3900.61,0.00013885,2]
[331600422,1720578673177,-1148.94,0.00013885,2]
[331600423,1720578673187,-1148.94,0.00013885,2]
[331600424,1720578673196,-500.0,0.00013885,2]
[331600425,1720578673205,-1390.96,0.00013885,2]
[331600426,1720578673214,-1390.96,0.00013885,2]
[331600427,1720578673224,-1108.95,0.00013885,2]
[331600428,1720578673233,-500.0,0.00013885,2]
[331600429,1720578673243,-500.0,0.00013885,2]
[331600430,1720578673252,-500.0,0.00013885,2]
[331600431,1720578673262,-500.0,0.00013885,2]
[331600432,1720578673271,-500.0,0.00013885,2]
[331600433,1720578673281,-500.0,0.00013885,2]
[331600434,1720578673290,-1959.1,0.00013885,2]
[331600435,1720578673300,-624.95182666,0.00013885,2]
[331600436,1720578673309,-500.0,0.00013885,2]
[331600437,1720578673319,-500.0,0.00013885,2]
[331600438,1720578673328,-500.0,0.00013885,2]
[331600439,1720578673337,-500.0,0.00013885,2]
[331600440,1720578673346,-2330.31,0.00013885,2]
[331600441,1720578673356,-310.77568309,0.00013885,2]
[331600442,1720578673366,-500.0,0.00013885,2]
[331600443,1720578673375,-500.0,0.00013885,2]
[331600444,1720578673385,-509.85545743,0.00013885,2]
[331600445,1720578673395,-500.0,0.00013885,2]
[331600446,1720578673404,-500.0,0.00013885,2]
[331600447,1720578673414,-3674.18,0.00013885,2]
[331600448,1720578673423,-500.0,0.00013885,2]
[331600449,1720578673433,-500.0,0.00013885,2]
[331600450,1720578673442,-277.79311505,0.00013885,2]
[331600451,1720578673452,-500.0,0.00013885,2]
[331600452,1720578673462,-500.0,0.00013885,2]
[331600453,1720578673472,-500.0,0.00013885,2]
[331600454,1720578673481,-5450.96,0.00013885,2]
[331600455,1720578673490,-483.12750395,0.00013885,2]
[331600456,1720578673499,-500.0,0.00013885,2]
[331600457,1720578673509,-1854.06,0.00013885,2]
[331600458,1720578673518,-607.24635616,0.00013885,2]
[331600459,1720578673527,-500.0,0.00013885,2]
[331600460,1720578673537,-500.0,0.00013885,2]
[331600461,1720578673546,-500.0,0.00013885,2]
[331600462,1720578673555,-500.0,0.00013885,2]
[331600463,1720578673564,-500.0,0.00013885,2]
[331600464,1720578673575,-500.0,0.00013885,2]
[331600465,1720578673584,-500.0,0.00013885,2]
[331600466,1720578673594,-500.0,0.00013885,2]
[331600467,1720578673603,-500.0,0.00013885,2]
[331600468,1720578673612,-2671.29,0.00013885,2]
[331600469,1720578673621,-500.0,0.00013885,2]
[331600470,1720578673631,-500.0,0.00013885,2]
[331600471,1720578673639,-500.0,0.00013885,2]
[331600472,1720578673648,-500.0,0.00013885,2]
[331600473,1720578673658,-5361.09,0.00013885,2]
[331600474,1720578673667,-500.0,0.00013885,2]
[331600475,1720578673676,-711.49,0.00013885,2]
[331600476,1720578673685,-500.0,0.00013885,2]
[331600477,1720578673694,-355.37478251,0.00013885,2]
[331600478,1720578673703,-4790.22,0.00013885,2]
[331600479,1720578673713,-307.13137978,0.00013885,2]
[331600480,1720578673722,-3071.88,0.00013885,2]
[331600481,1720578673732,-500.0,0.00013885,2]
[331600482,1720578673741,-5027.3,0.00013885,2]
[331600483,1720578673751,-375.53765532,0.00013885,2]
[331600484,1720578673760,-500.0,0.00013885,2]
[331600485,1720578673770,-1421.19,0.00013885,2]
[331600486,1720578673779,-1421.19,0.00013885,2]
[331600487,1720578673788,-500.0,0.00013885,2]
[331600488,1720578673798,-500.0,0.00013885,2]
[331600489,1720578673807,-500.0,0.00013885,2]
[331600490,1720578673817,-500.0,0.00013885,2]
[331600491,1720578673827,-304.41725903,0.00013885,2]
[331600492,1720578673837,-500.0,0.00013885,2]
[331600493,1720578673848,-500.0,0.00013885,2]
[331600494,1720578673860,-4204.27,0.00013885,2]
[331600495,1720578673872,-500.0,0.00013885,2]
[331600496,1720578673882,-500.0,0.00013885,2]
[331600497,1720578673892,-3445.23,0.00013885,2]
[331600498,1720578673901,-500.0,0.00013885,2]
[331600499,1720578673911,-3565.67,0.00013885,2]
[331600500,1720578673921,-4612.26,0.00013885,2]
[331600501,1720578674151,-4612.26,0.00013885,2]
[331600502,1720578674163,-500.0,0.00013885,2]
[331600503,1720578674172,-500.0,0.00013885,2]
[331600504,1720578674182,-500.0,0.00013885,2]
[331600505,1720578674191,-500.0,0.00013885,2]
[331600506,1720578674201,-1958.4,0.00013885,2]
[331600507,1720578674210,-1958.4,0.00013885,2]
[331600508,1720578674220,-500.0,0.00013885,2]
[331600509,1720578674229,-619.12690857,0.00013885,2]
[331600510,1720578674239,-500.0,0.00013885,2]
[331600511,1720578674248,-500.0,0.00013885,2]
[331600512,1720578674258,-885.52,0.00013885,2]
[331600513,1720578674267,-885.52,0.00013885,2]
[331600514,1720578674277,-203.35663173,0.00013885,2]
[331600515,1720578674286,-500.0,0.00013885,2]
[331600516,1720578674295,-500.0,0.00013885,2]
[331600517,1720578674305,-500.0,0.00013885,2]
[331600518,1720578674314,-500.0,0.00013885,2]
[331600519,1720578674323,-500.0,0.00013885,2]
[331600520,1720578674332,-500.0,0.00013885,2]
[331600521,1720578674341,-500.0,0.00013885,2]
[331600522,1720578674351,-500.0,0.00013885,2]
[331600523,1720578674360,-500.0,0.00013885,2]
[331600524,1720578674370,-500.0,0.00013885,2]
[331600525,1720578674379,-500.0,0.00013885,2]
[331600526,1720578674388,-500.0,0.00013885,2]
[331600527,1720578674397,-500.0,0.00013885,2]
[331600528,1720578674407,-500.0,0.00013885,2]
[331600529,1720578674416,-520.5778938,0.00013886,2]